bitfinex-derivatives/quotes_ETHF0:USTF0_20260118
["timestamp","ask_amount","ask_price","bid_price","bid_amount"]
[1768732140054,1.10228803,3322.5,3321.1,1.1181295]
[1768732140353,1.03819973,3322.4,3321.1,1.1181295]
[1768732140554,1.10228803,3322.5,3321.1,1.1181295]
[1768732140758,1.03835871,3322.4,3321.1,1.1181295]
[1768732141055,1.10228803,3322.5,3321.1,1.1181295]
[1768732141357,1.03835871,3322.4,3321.1,1.1181295]
[1768732141556,1.10228803,3322.5,3321.1,1.1181295]
[1768732141753,1.03859942,3322.4,3321.1,1.1181295]
[1768732141954,1.10228803,3322.5,3321.1,1.1181295]
[1768732142250,1.03859948,3322.4,3321.1,1.1181295]
[1768732142454,1.03859948,3322.3,3321.1,1.1181295]
[1768732142656,1.10228803,3322.5,3321.1,1.1181295]
[1768732142856,1.0391792,3322.4,3321.1,1.1181295]
[1768732143055,1.0391792,3322.3,3321.1,1.1181295]
[1768732143243,1.10228803,3322.5,3321.1,1.1181295]
[1768732143445,1.03920001,3322.4,3321.1,1.1181295]
[1768732143649,1.03920001,3322.3,3321.1,1.1181295]
[1768732143844,1.10228803,3322.5,3321.1,1.1181295]
[1768732144044,1.03920004,3322.4,3321.1,1.1181295]
[1768732144249,1.03920004,3322.3,3321.1,1.1181295]
[1768732144546,1.10228803,3322.5,3321.1,1.1181295]
[1768732144847,1.03920014,3322.4,3321.1,1.1181295]
[1768732145044,1.03920014,3322.3,3321.1,1.1181295]
[1768732145354,1.10228803,3322.5,3321.1,1.1181295]
[1768732145549,1.03920027,3322.4,3321.1,1.1181295]
[1768732145749,1.03920027,3322.3,3321.1,1.1181295]
[1768732145956,1.10228803,3322.5,3321.1,1.1181295]
[1768732146158,1.0390251,3322.4,3321.1,1.1181295]
[1768732146366,1.0390251,3322.3,3321.1,1.1181295]
[1768732146567,1.10228803,3322.5,3321.1,1.1181295]
[1768732146868,1.03903187,3322.4,3321.1,1.1181295]
[1768732147067,1.03903187,3322.3,3321.1,1.1181295]
[1768732147258,1.10228803,3322.5,3321.1,1.1181295]
[1768732147460,1.03903321,3322.4,3321.1,1.1181295]
[1768732147757,1.03903321,3322.3,3321.1,1.1181295]
[1768732147959,1.10228803,3322.5,3321.1,1.1181295]
[1768732148156,1.03903329,3322.4,3321.1,1.1181295]
[1768732148369,1.03903329,3322.3,3321.1,1.1181295]
[1768732148570,1.10228803,3322.5,3321.1,1.1181295]
[1768732148766,1.03903346,3322.4,3321.1,1.1181295]
[1768732148967,1.03903346,3322.3,3321.1,1.1181295]
[1768732149167,1.10228803,3322.5,3321.1,1.1181295]
[1768732149367,1.10228803,3322.5,3321.1,0.1506]
[1768732149368,1.03903373,3322.4,3321.1,0.1506]
[1768732149569,1.03903373,3322.3,3321.1,0.1506]
[1768732149770,0.13475853,3322.5,3321.1,0.1506]
[1768732149973,1.03903362,3322.4,3321.1,0.1506]
[1768732150165,1.03903362,3322.3,3321.1,0.1506]
[1768732150366,0.13475853,3322.5,3321.1,0.1506]
[1768732150574,1.03903298,3322.4,3321.1,0.1506]
[1768732150768,1.03903298,3322.3,3321.1,0.1506]
[1768732150966,0.13475853,3322.5,3321.1,0.1506]
[1768732151165,1.03903343,3322.4,3321.1,0.1506]
[1768732151374,1.03903343,3322.3,3321.1,0.1506]
[1768732151576,0.13475853,3322.5,3321.1,0.1506]
[1768732151767,1.03903318,3322.4,3321.1,0.1506]
[1768732151967,1.03903318,3322.3,3321.1,0.1506]
[1768732152176,0.13475853,3322.5,3321.1,0.1506]
[1768732152376,1.039033,3322.4,3321.1,0.1506]
[1768732152575,1.039033,3322.3,3321.1,0.1506]
[1768732152875,0.13475853,3322.5,3321.1,0.1506]
[1768732153176,1.03903453,3322.4,3321.1,0.1506]
[1768732153377,1.03903453,3322.3,3321.1,0.1506]
[1768732153568,0.13475853,3322.5,3321.1,0.1506]
[1768732153767,1.03903385,3322.4,3321.1,0.1506]
[1768732153967,1.03903385,3322.3,3321.1,0.1506]
[1768732154176,0.13475853,3322.5,3321.1,0.1506]
[1768732154367,1.03903313,3322.4,3321.1,0.1506]
[1768732154569,1.03903313,3322.3,3321.1,0.1506]
[1768732154867,0.13475853,3322.5,3321.1,0.1506]
[1768732155070,1.03903313,3322.4,3321.1,0.1506]
[1768732155271,1.03903313,3322.3,3321.1,0.1506]
[1768732155477,0.13475853,3322.5,3321.1,0.1506]
[1768732155678,1.03903241,3322.4,3321.1,0.1506]
[1768732155876,1.03903241,3322.3,3321.1,0.1506]
[1768732156079,0.13475853,3322.5,3321.1,0.1506]
[1768732156272,1.03903241,3322.4,3321.1,0.1506]
[1768732156472,1.03903241,3322.3,3321.1,0.1506]
[1768732156770,0.13475853,3322.5,3321.1,0.1506]
[1768732156974,1.0390318,3322.4,3321.1,0.1506]
[1768732157272,1.0390318,3322.3,3321.1,0.1506]
[1768732157473,0.13475853,3322.5,3321.1,0.1506]
[1768732157772,1.03903096,3322.4,3321.1,0.1506]
[1768732157973,1.03903096,3322.3,3321.1,0.1506]
[1768732158171,0.13475853,3322.5,3321.1,0.1506]
[1768732158372,1.03903096,3322.4,3321.1,0.1506]
[1768732158572,1.03903096,3322.3,3321.1,0.1506]
[1768732158774,0.13475853,3322.5,3321.1,0.1506]
[1768732158974,1.03903032,3322.4,3321.1,0.1506]
[1768732159179,1.03903032,3322.3,3321.1,0.1506]
[1768732159378,0.13475853,3322.5,3321.1,0.1506]
[1768732159677,1.03902985,3322.4,3321.1,0.1506]
[1768732159872,1.03902985,3322.3,3321.1,0.1506]
[1768732160072,0.13475853,3322.5,3321.1,0.1506]
[1768732160374,1.03902978,3322.4,3321.1,0.1506]
[1768732160669,1.03902978,3322.3,3321.1,0.1506]
[1768732160873,0.13475853,3322.5,3321.1,0.1506]
[1768732161082,1.0390297,3322.4,3321.1,0.1506]
[1768732161379,1.0390297,3322.3,3321.1,0.1506]
[1768732161579,0.13475853,3322.5,3321.1,0.1506]
[1768732161880,1.03902972,3322.4,3321.1,0.1506]
[1768732162080,1.03902972,3322.3,3321.1,0.1506]
[1768732162275,0.13475853,3322.5,3321.1,0.1506]
[1768732162476,1.03902908,3322.4,3321.1,0.1506]
[1768732162676,1.03902908,3322.3,3321.1,0.1506]
[1768732162876,0.13475853,3322.5,3321.1,0.1506]
[1768732163080,1.03902908,3322.4,3321.1,0.1506]
[1768732163376,1.03902908,3322.3,3321.1,0.1506]
[1768732163577,0.13475853,3322.5,3321.1,0.1506]
[1768732163777,1.03902955,3322.4,3321.1,0.1506]
[1768732164077,1.03902955,3322.3,3321.1,0.1506]
[1768732164278,0.13475853,3322.5,3321.1,0.1506]
[1768732164478,1.03903103,3322.4,3321.1,0.1506]
[1768732164685,1.03903103,3322.3,3321.1,0.1506]
[1768732164876,0.13475853,3322.5,3321.1,0.1506]
[1768732165076,1.03902743,3322.4,3321.1,0.1506]
[1768732165278,1.03902743,3322.3,3321.1,0.1506]
[1768732165578,0.13475853,3322.5,3321.1,0.1506]
[1768732165777,1.17381036,3322.4,3321.1,0.1506]
[1768732166077,1.03902894,3322.3,3321.1,0.1506]
[1768732166277,0.13478142,3322.4,3321.1,0.1506]
[1768732166577,1.03902824,3322.3,3321.1,0.1506]
[1768732166773,0.13478142,3322.4,3321.1,0.1506]
[1768732166979,1.039029,3322.3,3321.1,0.1506]
[1768732167181,0.13478142,3322.4,3321.1,0.1506]
[1768732167381,1.03903095,3322.3,3321.1,0.1506]
[1768732167581,0.13478142,3322.4,3321.1,0.1506]
[1768732167781,1.03903094,3322.3,3321.1,0.1506]
[1768732168082,0.13478142,3322.4,3321.1,0.1506]
[1768732168388,1.03903094,3322.3,3321.1,0.1506]
[1768732168688,0.13478142,3322.4,3321.1,0.1506]
[1768732168890,1.03903102,3322.3,3321.1,0.1506]
[1768732169086,0.13478142,3322.4,3321.1,0.1506]
[1768732169286,1.03903114,3322.3,3321.1,0.1506]
[1768732169486,0.13478142,3322.4,3321.1,0.1506]
[1768732169690,1.03903114,3322.3,3321.1,0.1506]
[1768732169893,0.13478142,3322.4,3321.1,0.1506]
[1768732170082,1.03637741,3322.3,3321.1,0.1506]
[1768732170282,0.13478142,3322.4,3321.1,0.1506]
[1768732170485,1.03637744,3322.3,3321.1,0.1506]
[1768732170685,0.13478142,3322.4,3321.1,0.1506]
[1768732170884,1.0363765,3322.3,3321.1,0.1506]
[1768732171193,0.13478142,3322.4,3321.1,0.1506]
[1768732172400,0.13478142,3322.2,3321.1,0.1506]
[1768732190718,0.13478142,3322.2,3321.2,0.15059]
[1768732209341,0.13478142,3322.2,3321.3,0.96734646]
[1768732231958,0.13478142,3322.2,3321.3,1.11793646]
[1768732234856,0.13478142,3322.2,3321.4,0.15059]
[1768732237168,0.13930173,3322.7,3321.5,0.96734646]
[1768732237374,1.17208945,3322.6,3321.5,0.96734646]
[1768732237568,1.03278772,3322.5,3321.5,0.96734646]
[1768732239375,1.17208945,3322.5,3321.5,0.96734646]
[1768732239572,0.13930173,3322.5,3321.5,0.96734646]
[1768732242377,0.13930173,3322.5,3321.5,1.11792646]
[1768732243066,0.00226361,3322.8,3321.7,0.96734646]
[1768732243376,1.03278326,3322.7,3321.7,0.96734646]
[1768732243572,0.00226361,3322.8,3321.7,1.11791646]
[1768732243878,1.03276943,3322.7,3321.7,1.11791646]
[1768732244069,0.00226361,3322.8,3321.7,1.11791646]
[1768732244270,1.03276866,3322.7,3321.7,1.11791646]
[1768732244462,0.00226361,3322.8,3321.7,1.11791646]
[1768732244661,1.03246841,3322.7,3321.7,1.11791646]
[1768732244869,0.00226361,3322.8,3321.7,1.11791646]
[1768732248182,0.14156534,3322.8,3321.7,1.11791646]
[1768732253083,0.14044392,3322.6,3321.7,0.15057]
[1768732260486,0.14044392,3322.4,3321.7,0.15057]
[1768732300607,0.14044392,3322.4,3321.1,0.1506]
[1768732305516,0.14044392,3322.4,3321.2,0.1506]
[1768732326228,1.16568722,3322.3,3321.2,0.1506]
[1768732326429,0.13525181,3322.3,3321.2,0.1506]
[1768732330232,0.13525181,3322.1,3321.2,0.1506]
[1768732348040,0.12996914,3322.7,3321.2,0.1506]
[1768732348242,0.12996914,3322.5,3321.2,0.1506]
[1768732348540,1.16106084,3322.4,3321.2,0.1506]
[1768732348741,1.0310917,3322.3,3321.2,0.1506]
[1768732351036,0.12996914,3322.7,3321.2,0.1506]
[1768732351237,1.16131674,3322.6,3321.2,0.1506]
[1768732351430,1.16131674,3322.5,3321.2,0.1506]
[1768732351635,1.0313476,3322.4,3321.2,0.1506]
[1768732351828,0.12996914,3322.5,3321.2,0.1506]
[1768732352032,1.03122363,3322.4,3321.2,0.1506]
[1768732352233,0.12996914,3322.5,3321.2,0.1506]
[1768732352546,1.03113431,3322.4,3321.2,0.1506]
[1768732352732,0.12996914,3322.5,3321.2,0.1506]
[1768732352932,1.03117324,3322.4,3321.2,0.1506]
[1768732353141,0.12996914,3322.5,3321.2,0.1506]
[1768732353338,1.03117325,3322.4,3321.2,0.1506]
[1768732353541,0.12996914,3322.5,3321.2,0.1506]
[1768732353843,1.03109939,3322.4,3321.2,0.1506]
[1768732354042,0.12996914,3322.5,3321.2,0.1506]
[1768732354340,1.03109846,3322.4,3321.2,0.1506]
[1768732354640,0.12996914,3322.5,3321.2,0.1506]
[1768732354840,1.03103852,3322.4,3321.2,0.1506]
[1768732355032,0.12996914,3322.5,3321.2,0.1506]
[1768732355226,1.03103871,3322.4,3321.2,0.1506]
[1768732355430,0.12996914,3322.5,3321.2,0.1506]
[1768732355636,1.0309871,3322.4,3321.2,0.1506]
[1768732355837,0.12996914,3322.5,3321.2,0.1506]
[1768732356038,1.03098438,3322.4,3321.2,0.1506]
[1768732356238,0.12996914,3322.5,3321.2,0.1506]
[1768732356440,1.03094009,3322.4,3321.2,0.1506]
[1768732356737,0.12996914,3322.5,3321.2,0.1506]
[1768732356932,1.03094017,3322.4,3321.2,0.1506]
[1768732357133,0.12996914,3322.5,3321.2,0.1506]
[1768732357333,1.03094021,3322.4,3321.2,0.1506]
[1768732357539,0.12996914,3322.5,3321.2,0.1506]
[1768732357741,1.03090117,3322.4,3321.2,0.1506]
[1768732357932,0.12996914,3322.5,3321.2,0.1506]
[1768732358133,1.16979375,3322.4,3321.2,0.1506]
[1768732358337,0.13889258,3322.4,3321.2,0.1506]
[1768732380359,1.0328428,3322.3,3321.2,0.1506]
[1768732380658,0.13889258,3322.4,3321.2,0.1506]
[1768732380847,1.03284273,3322.3,3321.2,0.1506]
[1768732381048,0.13889258,3322.4,3321.2,0.1506]
[1768732381258,1.03284545,3322.3,3321.2,0.1506]
[1768732381558,0.13889258,3322.4,3321.2,0.1506]
[1768732381756,1.03282295,3322.3,3321.2,0.1506]
[1768732381958,0.13889258,3322.4,3321.2,0.1506]
[1768732382158,1.03282289,3322.3,3321.2,0.1506]
[1768732382358,0.13889258,3322.4,3321.2,0.1506]
[1768732382565,1.03282072,3322.3,3321.2,0.1506]
[1768732382753,0.13889258,3322.4,3321.2,0.1506]
[1768732382954,1.03282072,3322.3,3321.2,0.1506]
[1768732383154,0.13889258,3322.4,3321.2,0.1506]
[1768732383356,1.0328194,3322.3,3321.2,0.1506]
[1768732383561,0.13889258,3322.4,3321.2,0.1506]
[1768732383750,1.0328194,3322.3,3321.2,0.1506]
[1768732384054,0.13889258,3322.4,3321.2,0.1506]
[1768732384259,1.03281897,3322.3,3321.2,0.1506]
[1768732384454,0.13889258,3322.4,3321.2,0.1506]
[1768732384654,1.1654876,3322.3,3321.2,0.1506]
[1768732384855,0.13266834,3322.3,3321.2,0.1506]
[1768732393164,0.00226361,3322.8,3321.2,0.1506]
[1768732393366,1.16545328,3322.7,3321.2,0.1506]
[1768732393554,1.03278494,3322.6,3321.2,0.1506]
[1768732393863,1.03278494,3322.5,3321.2,0.1506]
[1768732394062,0.13266834,3322.7,3321.2,0.1506]
[1768732394367,1.03266044,3322.6,3321.2,0.1506]
[1768732394567,1.03266044,3322.5,3321.2,0.1506]
[1768732394762,0.13266834,3322.7,3321.4,0.15059]
[1768732407872,0.13266834,3322.7,3321.5,0.15058]
[1768732408973,0.13266834,3322.7,3321.6,0.15058]
[1768732418073,0.13266834,3322.7,3321.7,0.15057]
[1768732425277,0.13266834,3322.7,3321.3,40.8]
[1768732425581,0.00226361,3322.8,3321.9,0.15056]
[1768732434785,0.1375037,3323.2,3322.3,0.15054]
[1768732435890,0.14064817,3323.2,3322.3,0.15054]
[1768732450207,0.14064817,3323.2,3322.4,2.158]
[1768732459316,0.00314447,3323.2,3322.4,2.30854]
[1768732464828,0.00314447,3323.2,3322.5,0.15054]
[1768732477227,0.00314447,3323.2,3322.6,0.15053]
[1768732477428,0.00314447,3323.2,3322.6,0.15367783]
[1768732477932,0.1375037,3323.7,3322.6,0.15367783]
[1768732478135,1.03239115,3323.6,3322.6,0.15367783]
[1768732478430,0.1375037,3323.7,3322.6,0.15367783]
[1768732478631,1.03239425,3323.6,3322.6,0.15367783]
[1768732478831,0.1375037,3323.7,3322.6,0.15367783]
[1768732479030,1.03239427,3323.6,3322.6,0.15367783]
[1768732479232,0.14002657,3323.7,3322.6,0.15367783]
[1768732479432,1.03240002,3323.6,3322.6,0.15367783]
[1768732479637,0.14002657,3323.7,3322.6,0.15367783]
[1768732479932,1.03240153,3323.6,3322.6,0.15367783]
[1768732480124,0.14002657,3323.7,3322.6,0.15367783]
[1768732480320,1.03241536,3323.6,3322.6,0.15367783]
[1768732480525,0.14002657,3323.7,3322.6,0.15367783]
[1768732480735,1.03241528,3323.6,3322.6,0.15367783]
[1768732480926,0.14002657,3323.7,3322.6,0.15367783]
[1768732481126,1.03241532,3323.6,3322.6,0.15367783]
[1768732481326,0.14002657,3323.7,3322.6,0.15367783]
[1768732481527,1.03242945,3323.6,3322.6,0.15367783]
[1768732481728,0.14002657,3323.7,3322.6,0.15367783]
[1768732481930,1.03243074,3323.6,3322.6,0.15367783]
[1768732482131,0.14002657,3323.7,3322.6,0.15367783]
[1768732482324,1.03244826,3323.6,3322.6,0.15367783]
[1768732482531,0.14002657,3323.7,3322.6,0.15367783]
[1768732489739,0.00252287,3323.7,3322.6,0.15367783]
[1768732489941,0.00252287,3323.7,3322.7,0.15053]
[1768732490242,0.00252287,3323.7,3322.8,0.15052]
[1768732490939,0.00252287,3323.7,3322.9,0.15052]
[1768732492445,0.13192609,3324.1,3323.0,0.15051]
[1768732493343,0.13542353,3324.1,3323.0,0.15051]
[1768732493736,0.13542353,3324.1,3323.1,0.15051]
[1768732532583,0.13542353,3324.1,3323.2,0.1505]
[1768732561017,0.13347062,3323.9,3322.6,0.00314783]
[1768732561216,0.13347062,3323.7,3322.6,0.00314783]
[1768732585843,0.14416385,3324.1,3322.9,0.15052]
[1768732586141,0.14416385,3324.1,3323.0,0.15051]
[1768732590444,0.14416385,3324.1,3323.0,2.33051]
[1768732591036,0.00349744,3324.1,3323.0,2.33051]
[1768732591240,0.00349744,3324.1,3323.1,0.15051]
[1768732591442,0.14066641,3324.6,3323.2,0.1505]
[1768732591640,1.03429855,3324.5,3323.2,0.1505]
[1768732591942,0.14066641,3324.6,3323.2,0.1505]
[1768732592137,1.03429165,3324.5,3323.2,0.1505]
[1768732592440,0.00339757,3324.5,3323.6,0.15049]
[1768732597645,0.13820754,3324.5,3323.6,0.15049]
[1768732599850,0.00339757,3324.5,3323.6,0.15049]
[1768732611975,0.13820754,3324.5,3323.6,0.15049]
[1768732612866,0.13820754,3324.5,3322.8,3.14266541]
[1768732613168,0.13820754,3324.5,3323.1,0.15051]
[1768732615469,0.13229074,3324.3,3323.1,0.15051]
[1768732616067,0.13229074,3324.1,3322.3,2.32754]
[1768732616271,0.13229074,3323.9,3322.3,2.32754]
[1768732616675,0.13229074,3323.9,3322.3,0.15054]
[1768732616878,0.13229074,3323.7,3322.3,0.15054]
[1768732620272,0.13229074,3323.7,3322.4,0.15054]
[1768732620479,0.13229074,3324.4,3322.4,0.15054]
[1768732620772,0.13229074,3324.2,3322.4,0.15054]
[1768732620977,1.1707276,3324.1,3322.4,0.15054]
[1768732621181,0.13229074,3324.1,3322.4,0.15054]
[1768732622681,0.13229074,3324.1,3322.6,0.13682766]
[1768732623480,0.13229074,3324.1,3322.6,0.00314783]
[1768732632294,0.13229074,3323.9,3322.6,0.00314783]
[1768732639489,0.13229074,3323.6,3322.6,0.00314783]
[1768732658505,0.13229074,3323.6,3322.5,0.15054]
[1768732658698,0.14095168,3323.4,3322.1,0.60163587]
[1768732659501,0.14095168,3323.4,3322.5,0.15054]
[1768732661603,0.14095168,3323.2,3322.5,0.15054]
[1768732663210,0.14095168,3324.1,3322.5,0.15054]
[1768732663399,1.18251006,3324.0,3322.5,0.15054]
[1768732663603,1.18251006,3323.9,3322.5,0.15054]
[1768732663802,1.18251006,3323.8,3322.5,0.15054]
[1768732664005,1.04155838,3323.7,3322.5,0.15054]
[1768732664306,1.04155838,3323.6,3322.5,0.15054]
[1768732664507,1.04155838,3323.5,3322.5,0.15054]
[1768732664707,1.04155838,3323.4,3322.5,0.15054]
[1768732664912,1.04155838,3323.3,3322.5,0.15054]
[1768732665212,0.14095168,3323.8,3322.5,0.15054]
[1768732665413,1.18227566,3323.7,3322.5,0.15054]
[1768732665612,1.04132398,3323.6,3322.5,0.15054]
[1768732665814,1.04132398,3323.5,3322.5,0.15054]
[1768732666113,1.04132398,3323.4,3322.5,0.15054]
[1768732666307,0.14095168,3323.7,3322.5,0.15054]
[1768732666512,1.04124023,3323.6,3322.5,0.15054]
[1768732666816,1.04124023,3323.5,3322.5,0.15054]
[1768732667000,1.04124023,3323.4,3322.5,0.15054]
[1768732667204,0.14095168,3323.7,3322.5,0.15054]
[1768732667408,1.0411705,3323.6,3322.5,0.15054]
[1768732667600,1.0411705,3323.5,3322.5,0.15054]
[1768732667809,1.0411705,3323.4,3322.5,0.15054]
[1768732668010,0.14095168,3323.6,3322.5,0.15054]
[1768732668210,1.0411705,3323.5,3322.5,0.15054]
[1768732668411,1.0411705,3323.4,3322.5,0.15054]
[1768732668717,0.14095168,3323.6,3322.5,0.15054]
[1768732668902,1.04111124,3323.5,3322.5,0.15054]
[1768732669108,1.04111124,3323.4,3322.5,0.15054]
[1768732669306,0.14095168,3323.6,3322.5,0.15054]
[1768732669506,1.04106356,3323.5,3322.5,0.15054]
[1768732669712,1.04106356,3323.4,3322.5,0.15054]
[1768732670009,0.14095168,3323.6,3322.5,0.15054]
[1768732670416,1.04102669,3323.5,3322.5,0.15054]
[1768732670603,1.04102669,3323.4,3322.5,0.15054]
[1768732670807,0.14095168,3323.6,3322.5,0.15054]
[1768732671116,1.04102717,3323.5,3322.5,0.15054]
[1768732671317,1.04102717,3323.4,3322.5,0.15054]
[1768732671517,0.14095168,3323.6,3322.5,0.15054]
[1768732671817,1.04099785,3323.5,3322.5,0.15054]
[1768732672115,1.04099785,3323.4,3322.5,0.15054]
[1768732672315,0.14095168,3323.6,3322.5,0.15054]
[1768732672517,1.04097633,3323.5,3322.5,0.15054]
[1768732672715,1.04097633,3323.4,3322.5,0.15054]
[1768732672914,0.14095168,3323.6,3322.5,0.15054]
[1768732673116,1.17068878,3323.5,3322.5,0.15054]
[1768732673314,1.04097768,3323.4,3322.5,0.15054]
[1768732673507,0.1297111,3323.5,3322.5,0.15054]
[1768732673712,1.04096364,3323.4,3322.5,0.15054]
[1768732673911,0.1297111,3323.5,3322.5,0.15054]
[1768732674118,1.04096369,3323.4,3322.5,0.15054]
[1768732674322,0.1297111,3323.5,3322.5,0.15054]
[1768732674510,1.04096093,3323.4,3322.5,0.15054]
[1768732674709,0.1297111,3323.5,3322.1,0.00263138]
[1768732675010,1.17067126,3323.4,3322.1,0.00263138]
[1768732675215,0.1297111,3323.4,3322.1,0.00263138]
[1768732677619,1.04099156,3323.3,3322.1,0.00263138]
[1768732677913,0.1297111,3323.4,3322.1,0.00263138]
[1768732678118,1.04099159,3323.3,3322.1,0.00263138]
[1768732678318,0.1297111,3323.4,3322.1,0.00263138]
[1768732678518,1.04101664,3323.3,3322.1,0.00263138]
[1768732678717,0.1297111,3323.4,3322.1,0.00263138]
[1768732679015,1.04101664,3323.3,3322.1,0.00263138]
[1768732679217,0.1297111,3323.4,3322.1,0.00263138]
[1768732679417,1.04105263,3323.3,3322.1,0.00263138]
[1768732679611,0.1297111,3323.4,3322.1,0.00263138]
[1768732679812,1.04105263,3323.3,3322.1,0.00263138]
[1768732680106,0.1297111,3323.4,3322.1,0.00263138]
[1768732680309,1.04232526,3323.3,3322.1,0.00263138]
[1768732680511,0.1297111,3323.4,3322.1,0.00263138]
[1768732680710,1.04232526,3323.3,3322.1,0.00263138]
[1768732680917,0.1297111,3323.4,3322.1,0.00263138]
[1768732681120,1.04232526,3323.3,3322.1,0.00263138]
[1768732681322,0.1297111,3323.4,3322.1,0.00263138]
[1768732681512,1.04238404,3323.3,3322.1,0.00263138]
[1768732681820,0.1297111,3323.4,3322.1,0.00263138]
[1768732682119,0.1297111,3323.2,3322.1,0.00263138]
[1768732685619,0.1297111,3324.0,3322.1,0.00263138]
[1768732685819,0.1297111,3323.8,3322.2,0.96679132]
[1768732686021,1.04271702,3323.7,3322.2,0.96679132]
[1768732687418,1.04271702,3323.7,3322.6,0.96679132]
[1768732688712,0.1297111,3324.2,3322.6,0.96679132]
[1768732689013,1.04333491,3324.1,3322.6,0.96679132]
[1768732689325,1.04333491,3324.0,3322.6,0.96679132]
[1768732689526,1.04333491,3323.9,3322.6,0.96679132]
[1768732689726,1.04333491,3323.8,3322.6,0.96679132]
[1768732689915,0.1297111,3324.2,3322.6,0.96679132]
[1768732690213,1.17272388,3324.1,3322.6,0.96679132]
[1768732690413,1.04301278,3324.0,3322.6,0.96679132]
[1768732690620,1.04301278,3323.9,3322.6,0.96679132]
[1768732690815,1.04301278,3323.8,3322.6,0.96679132]
[1768732691016,0.1297111,3324.1,3322.6,0.96679132]
[1768732691218,1.17249029,3324.0,3322.6,0.96679132]
[1768732691418,1.04277919,3323.9,3322.6,0.96679132]
[1768732691617,1.04277919,3323.8,3322.6,0.96679132]
[1768732691917,0.1297111,3324.0,3322.6,0.96679132]
[1768732692117,1.04259032,3323.9,3322.6,0.96679132]
[1768732692321,1.04259032,3323.8,3322.6,0.96679132]
[1768732692522,0.1297111,3324.0,3322.6,0.96679132]
[1768732692722,1.04243704,3323.9,3322.6,0.96679132]
[1768732692923,1.04243704,3323.8,3322.6,0.96679132]
[1768732693122,0.1297111,3324.0,3322.6,0.96679132]
[1768732693324,1.0424116,3323.9,3322.6,0.96679132]
[1768732693623,0.1297111,3324.0,3322.6,0.96679132]
[1768732693624,1.0424116,3323.8,3322.6,0.96679132]
[1768732693932,0.1297111,3324.0,3322.6,0.96679132]
[1768732694124,1.04230785,3323.9,3322.6,0.96679132]
[1768732694325,1.04230785,3323.8,3322.4,0.15054]
[1768732694626,0.1297111,3324.0,3322.5,0.96679132]
[1768732694823,1.04220361,3323.9,3322.5,0.96679132]
[1768732695124,1.04220361,3323.8,3322.5,0.96679132]
[1768732695313,0.1297111,3324.0,3322.5,0.96679132]
[1768732695519,1.04211372,3323.9,3322.5,0.96679132]
[1768732695720,1.04211372,3323.8,3322.5,0.96679132]
[1768732695926,0.1297111,3324.0,3322.5,0.96679132]
[1768732696123,0.1297111,3323.8,3322.4,0.15054]
[1768732699330,0.1297111,3323.8,3322.8,0.96651094]
[1768732708141,0.1297111,3323.8,3322.4,0.15054]
[1768732708332,0.1297111,3323.8,3322.8,0.96651094]
[1768732710049,0.1297111,3323.8,3322.6,0.96651094]
[1768732715454,1.04115922,3323.7,3322.6,0.96651094]
[1768732715659,0.1297111,3323.8,3322.6,0.96651094]
[1768732715861,1.04115928,3323.7,3322.6,0.96651094]
[1768732716060,0.1297111,3323.8,3322.6,0.96651094]
[1768732716259,1.04115933,3323.7,3322.6,0.96651094]
[1768732716463,0.1297111,3323.8,3322.6,0.96651094]
[1768732716648,1.04156694,3323.7,3322.6,0.96651094]
[1768732716848,0.1297111,3323.8,3322.6,0.96651094]
[1768732717051,1.04154911,3323.7,3322.6,0.96651094]
[1768732717252,0.1297111,3323.8,3322.6,0.96651094]
[1768732717457,1.04180477,3323.7,3322.6,0.96651094]
[1768732717653,1.09622204,3323.8,3322.6,0.96651094]
[1768732717861,1.04171524,3323.7,3322.4,1.11705094]
[1768732718057,1.1708752,3323.7,3322.4,1.11705094]
[1768732718256,1.04171524,3323.6,3322.4,1.11705094]
[1768732718462,0.12915996,3323.7,3322.4,1.11705094]
[1768732718664,1.04173163,3323.6,3322.4,1.11705094]
[1768732718961,0.12915996,3323.7,3322.4,1.11705094]
[1768732719154,1.04159593,3323.6,3322.4,1.11705094]
[1768732719355,0.12915996,3323.7,3322.4,1.11705094]
[1768732719551,1.04154554,3323.6,3322.4,1.11705094]
[1768732719757,0.12915996,3323.7,3322.4,1.11705094]
[1768732719956,1.04154556,3323.6,3322.4,1.11705094]
[1768732720251,0.12915996,3323.7,3322.4,1.11705094]
[1768732720457,1.04150955,3323.6,3322.4,1.11705094]
[1768732720666,0.12915996,3323.7,3322.4,1.11705094]
[1768732720866,1.04150876,3323.6,3322.4,1.11705094]
[1768732721066,0.12915996,3323.7,3322.4,1.11705094]
[1768732721269,1.04150879,3323.6,3322.4,1.11705094]
[1768732721565,0.12915996,3323.7,3322.4,1.11705094]
[1768732721766,1.04148058,3323.6,3322.4,1.11705094]
[1768732721964,0.12915996,3323.7,3322.4,1.11705094]
[1768732722160,1.04148059,3323.6,3322.4,1.11705094]
[1768732722360,0.12915996,3323.7,3322.4,1.11705094]
[1768732722661,1.04146005,3323.6,3322.4,1.11705094]
[1768732722860,0.12915996,3323.7,3322.4,1.11705094]
[1768732723058,1.0956709,3323.5,3322.4,0.15054]
[1768732723261,0.12915996,3323.4,3322.4,0.15054]
[1768732724668,0.96651094,3323.3,3322.4,0.15054]
[1768732726073,0.96651094,3323.3,3322.1,0.00263138]
[1768732726974,1.0956709,3323.3,3322.1,0.00263138]
[1768732728972,0.96651094,3323.1,3322.1,0.00263138]
[1768732729181,1.0956709,3323.1,3322.1,0.00263138]
[1768732729381,0.96651094,3322.8,3322.1,0.00263138]
[1768732729863,0.96651094,3322.8,3321.7,0.15057]
[1768732730977,0.96651094,3322.8,3321.7,0.15272404]
[1768732731969,0.12915996,3322.7,3321.7,0.15272404]
[1768732733774,3.0,3323.1,3321.8,0.96651094]
[1768732733967,1.03840929,3323.0,3322.1,0.96651094]
[1768732734171,3.0,3323.1,3322.1,0.96651094]
[1768732734577,3.0,3323.1,3322.3,0.96651094]
[1768732734769,3.0,3323.1,3322.2,0.96651094]
[1768732741186,3.0,3323.1,3322.0,0.96651094]
[1768732751304,3.0,3323.1,3322.2,0.96651094]
[1768732752206,0.13920173,3323.0,3322.1,0.96651094]
[1768732757610,0.13920173,3323.0,3321.9,0.96651094]
[1768732758501,1.04239339,3322.9,3321.9,0.96651094]
[1768732758702,0.13920173,3323.0,3321.9,0.96651094]
[1768732758997,1.04239263,3322.9,3321.9,0.96651094]
[1768732759202,0.13920173,3323.0,3321.9,0.96651094]
[1768732759402,1.04240085,3322.9,3321.9,0.96651094]
[1768732759699,0.13920173,3323.0,3321.9,0.96651094]
[1768732759900,1.04242652,3322.9,3321.8,0.15057]